bitfinex/quotes_ETHUSD_20250519
["timestamp","ask_amount","ask_price","bid_price","bid_amount"]
[1747661255479,0.1,2404.9,2404.8,4.38949454]
[1747661255811,0.1,2404.9,2404.8,0.23114458]
[1747661257488,4.25817705,2404.9,2404.8,0.23114458]
[1747661257686,6.72800986,2404.9,2404.8,0.23114458]
[1747661258052,4.15873457,2404.6,2404.3,0.14283803]
[1747661258252,12.40473457,2404.6,2404.3,0.14283803]
[1747661258484,4.96238794,2404.5,2404.3,0.14283803]
[1747661258859,8.246,2404.6,2404.3,5.08744648]
[1747661259883,8.246,2404.6,2404.4,0.23093322]
[1747661260182,12.40473718,2404.6,2404.4,0.23093322]
[1747661260421,30.97738267,2404.5,2404.4,0.23093322]
[1747661260573,31.48616878,2404.5,2404.4,0.23093322]
[1747661260753,31.48616878,2404.5,2404.1,0.1755506]
[1747661260754,4.15938773,2404.2,2403.9,0.14283803]
[1747661260962,4.15973377,2404.0,2403.9,0.14283803]
[1747661261284,24.13448,2404.0,2403.9,0.14283803]
[1747661261684,17.3011,2404.1,2403.9,0.14283803]
[1747661261860,20.66058204,2404.1,2403.9,0.14283803]
[1747661262187,4.15973377,2404.0,2403.9,0.14283803]
[1747661262697,20.66056536,2404.1,2403.5,8.0]
[1747661262698,4.1599081,2403.9,2403.5,8.0]
[1747661262902,4.15981703,2404.0,2403.5,12.16058103]
[1747661263057,4.15981703,2404.0,2403.6,0.36109954]
[1747661263703,4.1597428,2404.0,2403.7,0.36109954]
[1747661263995,4.15981368,2404.0,2403.7,0.36109954]
[1747661264199,6.64186813,2404.0,2403.7,0.23114549]
[1747661264359,6.64186813,2404.0,2403.5,12.16050907]
[1747661264565,6.64186813,2404.0,2403.6,0.12995319]
[1747661265276,6.64186813,2404.0,2403.7,0.12995319]
[1747661265500,4.15990787,2403.9,2403.7,0.12995319]
[1747661265806,4.15990787,2403.9,2403.5,12.16050907]
[1747661266008,6.64183894,2404.0,2403.5,12.16050907]
[1747661266187,8.255,2404.1,2403.6,4.16036547]
[1747661266386,16.499,2404.1,2403.7,4.1601739]
[1747661266591,8.255,2404.1,2403.7,4.39108281]
[1747661266791,8.255,2404.1,2403.8,0.95054304]
[1747661266989,4.15909757,2404.4,2403.8,5.11051404]
[1747661267198,16.5,2404.2,2403.8,0.95054304]
[1747661267397,4.15957867,2404.1,2403.8,0.12994304]
[1747661267711,4.15956075,2404.1,2403.9,0.12994304]
[1747661267911,4.15956075,2404.1,2403.7,4.16022917]
[1747661268379,20.65947616,2404.2,2403.8,0.12994412]
[1747661268683,23.14135173,2404.2,2403.8,0.12994412]
[1747661268880,23.14135173,2404.2,2403.7,4.16022917]
[1747661269213,4.15957658,2404.1,2403.6,12.91883943]
[1747661269371,4.15973769,2404.0,2403.7,0.23081819]
[1747661269576,4.15964727,2404.1,2403.7,0.360767]
[1747661269806,4.15964727,2404.1,2403.8,0.12994881]
[1747661270112,23.14136437,2404.2,2403.8,0.12994881]
[1747661270312,0.90912911,2404.6,2404.2,8.0]
[1747661270616,4.91494094,2404.7,2404.2,8.0]
[1747661270814,4.91499308,2404.7,2404.3,0.12994881]
[1747661271002,8.243,2404.6,2404.3,4.2890606]
[1747661271312,8.243,2404.6,2404.3,0.12994881]
[1747661271522,8.243,2404.6,2404.3,8.12994881]
[1747661271683,8.243,2404.6,2404.3,12.15914287]
[1747661272218,8.243,2404.6,2404.4,0.12991038]
[1747661272718,8.243,2404.6,2404.3,12.15914287]
[1747661273937,8.243,2404.6,2404.4,0.12991275]
[1747661274748,4.15886878,2404.5,2404.1,4.99002066]
[1747661275241,4.15886878,2404.5,2404.2,0.12991815]
[1747661275523,12.40178468,2404.6,2404.3,0.12991815]
[1747661275887,8.243,2404.6,2404.3,0.12991815]
[1747661276116,8.243,2404.8,2404.5,4.9890682]
[1747661276920,8.243,2404.8,2404.6,0.12991815]
[1747661277286,8.243,2404.8,2404.5,4.9890682]
[1747661277928,8.243,2404.8,2404.6,4.15869532]
[1747661279633,8.243,2404.8,2404.5,4.9890682]
[1747661279634,0.1,2404.9,2404.7,4.15850431]
[1747661279816,0.1,2404.9,2404.8,4.15834996]
[1747661280420,0.1,2404.9,2404.8,13.11283861]
[1747661280825,0.1,2404.9,2404.8,13.24583111]
[1747661281043,0.1,2404.9,2404.8,13.47631446]
[1747661281554,0.1,2404.9,2404.8,13.79140592]
[1747661286663,0.1,2404.9,2404.8,22.58140592]
[1747661286859,0.1,2404.9,2404.8,24.68286951]
[1747661287942,0.1,2404.9,2404.8,24.55267336]
[1747661288269,0.1,2404.9,2404.8,24.68252426]
[1747661288470,0.1,2405.9,2405.8,12.92242149]
[1747661289172,0.1,2405.9,2405.8,13.05227239]
[1747661289371,0.1,2405.9,2405.8,13.98469259]
[1747661289573,0.1,2405.9,2405.8,13.85484169]
[1747661290585,0.1,2405.9,2405.8,13.98466219]
[1747661292174,0.1,2405.9,2405.8,13.85484169]
[1747661292362,0.1,2405.9,2405.8,14.03026824]
[1747661292872,0.1,2405.9,2405.8,9.87364675]
[1747661293072,0.1,2405.9,2405.8,0.17542655]
[1747661295570,0.1,2405.9,2405.8,4.33204804]
[1747661296381,0.1,2405.9,2405.8,5.09324804]
[1747661296790,0.1,2405.9,2405.8,5.22306559]
[1747661297019,0.1,2405.9,2405.8,5.45269505]
[1747661298589,0.1,2405.9,2405.8,13.45269505]
[1747661299877,0.1,2405.9,2405.8,12.69149505]
[1747661300189,0.1,2405.9,2405.8,8.53487356]
[1747661300392,0.1,2405.9,2405.8,0.53487356]
[1747661300393,4.25644873,2405.9,2405.8,0.53487356]
[1747661300722,4.25644873,2405.9,2405.8,0.40505601]
[1747661300888,5.92053699,2405.9,2405.8,0.17542655]
[1747661303816,13.92053699,2405.9,2405.8,0.17542655]
[1747661304704,31.87053699,2405.9,2405.8,0.17542655]
[1747661305383,23.87053699,2405.9,2405.8,0.17542655]
[1747661305918,40.32053699,2405.9,2405.8,0.17542655]
[1747661308327,48.87053699,2405.9,2405.8,0.17542655]
[1747661308681,4.15834996,2404.8,2404.7,0.14238457]
[1747661308876,4.19956385,2404.8,2404.7,0.14238457]
[1747661309114,4.15834996,2404.8,2404.7,0.2722872]
[1747661309424,4.15834996,2404.8,2404.7,0.14238457]
[1747661309906,4.98124996,2404.8,2404.7,0.14238457]
[1747661310094,6.71759683,2404.8,2404.7,0.14238457]
[1747661311110,4.15894344,2404.5,2404.1,0.13302882]
[1747661311283,12.38260554,2404.7,2404.3,8.0]
[1747661311488,12.38260554,2404.7,2404.3,4.15920956]
[1747661311804,12.38260554,2404.7,2404.2,13.33273348]
[1747661312010,4.15872415,2404.6,2404.3,1.89243082]
[1747661312313,4.15904175,2404.4,2404.3,0.12990939]
[1747661312736,4.15951715,2404.2,2403.9,0.7661]
[1747661313236,4.15951715,2404.2,2404.0,0.12993272]
[1747661313528,4.15956075,2404.1,2404.0,0.12993272]
[1747661313678,4.15983167,2404.0,2403.8,0.14238457]
[1747661314275,4.16056285,2403.6,2403.2,0.31800092]
[1747661314476,4.16056285,2403.6,2403.3,0.12995618]
[1747661315410,4.16056285,2403.6,2403.2,1.14170092]
[1747661316630,8.223,2403.7,2403.3,4.16079545]
[1747661316779,8.223,2403.7,2403.4,4.1607697]
[1747661316979,8.223,2403.7,2403.5,0.41607697]
[1747661317611,4.15981464,2404.0,2403.5,4.5766356]
[1747661317612,16.453,2404.0,2403.5,4.5766356]
[1747661317781,16.453,2404.0,2403.7,0.8101]
[1747661318299,20.61274628,2404.0,2403.7,0.8101]
[1747661318815,16.453,2404.0,2403.7,0.8101]
[1747661319011,4.15992026,2403.9,2403.6,8.0]
[1747661319177,20.61281352,2404.0,2403.6,4.16040576]
[1747661319386,16.453,2404.0,2403.6,4.16040576]
[1747661319904,16.453,2404.0,2403.6,5.1141333]
[1747661320104,16.453,2404.0,2403.7,4.16024608]
[1747661320335,4.98998524,2404.3,2403.8,4.16000604]
[1747661320336,8.224,2404.2,2403.8,4.16000604]
[1747661321137,12.38933055,2404.3,2403.9,4.15990257]
[1747661321307,20.61333055,2404.3,2403.8,12.15998951]
[1747661321826,20.61333055,2404.3,2403.8,13.88738216]
[1747661322429,4.15933055,2404.3,2403.8,13.88738216]
[1747661322598,4.15933055,2404.3,2403.9,0.7937]
[1747661322798,12.38233055,2404.3,2403.9,0.7937]
[1747661323128,4.15947179,2404.2,2403.9,0.7937]
[1747661323725,4.15947179,2404.2,2403.6,4.16029667]
[1747661323726,4.15957338,2404.1,2403.7,4.93343043]
[1747661323929,4.15957338,2404.1,2403.8,8.0]
[1747661324088,12.38228225,2404.3,2403.8,8.0]
[1747661324290,12.38230301,2404.3,2403.8,12.15998004]
[1747661325732,12.38230301,2404.3,2403.8,8.0]
[1747661325933,12.38230301,2404.3,2403.8,12.15997217]
[1747661328728,4.15930301,2404.3,2403.8,12.15997217]
[1747661329035,12.38030301,2404.3,2403.8,13.86930707]
[1747661330741,4.15939443,2404.2,2403.9,0.12993645]
[1747661331229,4.15939443,2404.2,2403.8,13.86930707]
[1747661331635,4.15939443,2404.2,2403.9,0.23145657]
[1747661332729,4.15939443,2404.2,2403.8,4.16005361]
[1747661333035,4.15939443,2404.2,2403.9,0.12993756]
[1747661333549,4.15939443,2404.2,2403.8,4.16005361]
[1747661333728,12.38025636,2404.3,2404.0,0.12993781]
[1747661333729,12.38029204,2404.3,2404.0,0.12993781]
[1747661333934,5.69018745,2404.2,2403.5,0.14238457]
[1747661334138,4.15956075,2404.1,2403.5,0.14238457]
[1747661334442,4.16025294,2403.7,2403.6,0.36178525]
[1747661334599,4.16025294,2403.7,2403.6,0.23183336]
[1747661334809,6.04719266,2403.7,2403.6,0.23183336]
[1747661335008,4.16042602,2403.6,2403.5,0.13307714]
[1747661336144,4.16042602,2403.6,2403.2,1.10140092]
[1747661336343,4.16031682,2403.7,2403.2,5.26251896]
[1747661336555,8.219,2403.8,2403.4,4.16060248]
[1747661336847,8.219,2403.8,2403.6,0.7754]
[1747661337341,8.219,2403.8,2403.7,0.2322551]
[1747661337530,8.219,2403.8,2403.7,0.3622156]
[1747661337848,16.439,2404.2,2403.8,4.15999283]
[1747661338515,20.59855969,2404.2,2403.9,0.1299605]
[1747661338711,20.59855969,2404.2,2404.0,0.2322551]
[1747661338909,20.59855969,2404.2,2404.0,0.3622156]
[1747661339258,20.59855969,2404.2,2404.1,0.1299605]
[1747661339658,20.59855969,2404.2,2404.1,0.3622156]
[1747661340324,8.22,2404.2,2404.1,0.3622156]
[1747661340529,16.438,2404.2,2404.1,0.3622156]
[1747661341548,16.438,2404.2,2404.1,0.49526791]
[1747661341748,12.37895846,2404.5,2404.1,5.19602074]
[1747661342052,16.437,2404.5,2404.2,0.1299605]
[1747661342341,20.59588702,2404.5,2404.3,0.26301281]
[1747661342564,4.99194175,2404.4,2404.3,0.26301281]
[1747661342716,4.99194175,2404.4,2404.3,0.13305231]
[1747661343245,13.03315564,2404.4,2404.3,0.13305231]
[1747661343449,16.85323369,2404.4,2404.3,0.13305231]
[1747661344649,4.16020324,2403.8,2403.4,0.14238457]
[1747661344941,12.37620324,2403.8,2403.5,0.12995839]
[1747661345364,12.37620324,2403.8,2403.4,0.14238457]
[1747661345365,4.16042602,2403.6,2403.4,0.14238457]
[1747661345518,4.16059912,2403.5,2403.4,0.14238457]
[1747661345720,4.16059912,2403.5,2403.4,0.27235549]
[1747661346336,4.16059912,2403.5,2403.4,0.50487595]
[1747661347451,4.16059912,2403.5,2403.4,0.49558191]
[1747661348464,4.16031742,2403.7,2403.4,0.49558191]
[1747661348618,4.16031742,2403.7,2403.5,0.12997092]
[1747661348619,4.1603367,2403.7,2403.5,0.12997092]
[1747661348962,4.15980515,2404.0,2403.6,4.39293253]
[1747661349114,4.15980515,2404.0,2403.6,4.96407397]
[1747661349316,4.15980515,2404.0,2403.7,0.12997092]
[1747661349743,4.15980515,2404.0,2403.8,0.12997092]
[1747661350258,4.15980515,2404.0,2403.9,0.36249138]
[1747661350774,12.38048567,2404.2,2403.9,0.36249138]
[1747661351118,8.221,2404.2,2404.0,0.49558191]
[1747661351322,4.15896576,2404.5,2404.0,5.91886653]
[1747661351542,4.15896576,2404.5,2404.0,5.45330045]
[1747661351752,4.15923142,2404.3,2404.0,1.29358191]
[1747661351959,4.15923142,2404.3,2404.1,0.36249138]
[1747661352533,4.15899633,2404.5,2404.2,0.12997092]
[1747661353134,20.59378342,2404.6,2404.3,0.12997092]
[1747661353457,20.59378342,2404.6,2404.3,0.36249138]
[1747661353760,4.15878342,2404.6,2404.4,0.12997092]
[1747661354120,4.15878342,2404.6,2404.5,0.12997092]
[1747661355640,4.94139154,2404.6,2404.5,0.12997092]
[1747661355957,4.15921681,2404.3,2404.0,0.798]
[1747661356263,4.15949286,2404.2,2404.1,0.23234265]
[1747661356467,4.98089286,2404.2,2404.1,0.36227531]
[1747661356641,30.32690545,2404.2,2404.1,0.49532781]
[1747661356839,30.30750545,2404.2,2404.1,0.36539515]
[1747661357154,30.30750545,2404.2,2404.1,0.1330525]
[1747661358231,4.15990681,2403.9,2403.8,0.14238457]
[1747661358431,5.0318207,2403.9,2403.8,0.14238457]
[1747661358666,5.95098033,2403.9,2403.8,0.14238457]
[1747661359070,5.90976644,2403.9,2403.8,0.14238457]
[1747661359748,4.16073212,2403.5,2403.3,0.13309304]
[1747661359944,4.16059912,2403.5,2403.4,0.23218124]
[1747661360849,5.39192601,2403.5,2403.4,0.23218124]
[1747661361038,10.37580278,2403.5,2403.4,0.23218124]
[1747661361359,18.33458889,2403.5,2403.4,0.23218124]
[1747661361557,4.16077223,2403.4,2403.1,0.1]
[1747661361743,4.16102922,2403.3,2403.1,0.1]
[1747661362072,4.16084828,2403.4,2403.1,0.1]
[1747661362287,4.16094536,2403.3,2403.2,0.23188319]
[1747661363162,16.433,2403.5,2403.1,0.1]
[1747661363348,16.433,2403.5,2403.1,0.99996846]
[1747661363554,8.221,2403.5,2403.2,4.16098002]
[1747661363953,12.38161751,2403.5,2403.2,0.13309121]
[1747661364140,4.16094536,2403.3,2403.2,0.13309121]
[1747661364336,4.16087304,2403.4,2403.2,0.13309121]
[1747661364568,4.16077223,2403.4,2403.2,0.13309121]
[1747661364741,12.38169976,2403.5,2403.2,0.13309121]
[1747661365078,12.38167446,2403.5,2403.2,0.13309121]
[1747661365581,12.38167446,2403.5,2403.1,0.1]
[1747661365882,12.38167446,2403.5,2403.1,1.83227036]
[1747661366077,12.38167446,2403.5,2403.1,5.99355977]
[1747661366572,12.38167446,2403.5,2403.1,1.83227036]
[1747661366944,12.38167446,2403.5,2403.2,0.23191177]
[1747661367291,12.38167446,2403.5,2403.1,1.83227036]
[1747661369179,12.38167446,2403.5,2403.2,0.23195139]
[1747661370076,12.38167446,2403.5,2403.1,1.83227036]
[1747661370283,4.16077334,2403.4,2403.1,1.83227036]
[1747661370580,4.16077334,2403.4,2403.2,0.13309401]
[1747661371675,4.16094536,2403.3,2403.2,0.13309401]
[1747661372082,4.16094536,2403.3,2403.1,0.1]
[1747661372475,4.1611185,2403.2,2403.1,0.1]
[1747661373255,12.38167226,2403.5,2403.1,0.3320759]
[1747661373606,4.16101112,2403.3,2403.1,0.3320759]
[1747661373800,4.1611185,2403.2,2403.1,0.1]
[1747661374400,13.1570185,2403.2,2403.1,0.1]
[1747661375856,4.1611185,2403.2,2403.1,0.1]
[1747661378365,5.81432785,2403.2,2403.1,0.1]
[1747661379312,6.64412785,2403.2,2403.1,0.1]
[1747661384461,14.64412785,2403.2,2403.1,0.1]
[1747661385811,6.64412785,2403.2,2403.1,0.1]
[1747661385994,21.4129185,2403.2,2403.1,0.1]
[1747661387606,21.4119185,2403.2,2403.1,0.1]
[1747661388721,20.5821185,2403.2,2403.1,0.1]
[1747661389208,8.214,2403.2,2403.1,0.1]
[1747661389414,13.1457185,2403.2,2403.1,0.1]
[1747661389713,20.5821185,2403.2,2403.1,0.1]
[1747661390505,23.13556337,2403.2,2403.1,0.1]
[1747661391077,20.5821185,2403.2,2403.1,0.1]
[1747661391289,20.5821185,2403.2,2403.1,0.22999993]
[1747661391490,21.3991185,2403.2,2403.1,0.22999993]
[1747661393127,20.5821185,2403.2,2403.1,0.22999993]
[1747661393325,12.3751185,2403.2,2403.1,0.22999993]
[1747661393632,16.42,2403.2,2403.1,1.04849993]
[1747661393859,8.206,2403.3,2403.1,1.41423929]
[1747661394060,8.206,2403.3,2403.2,0.12999993]
[1747661394427,12.36694536,2403.3,2403.2,0.36263254]
[1747661394819,8.206,2403.3,2403.2,0.36263254]
[1747661395662,12.36694536,2403.3,2403.2,0.49573929]
[1747661395859,14.8411277,2403.3,2403.2,0.49573929]
[1747661396236,15.6137277,2403.3,2403.2,0.49573929]
[1747661396437,15.6137277,2403.3,2403.2,0.26310668]
[1747661396642,15.6137277,2403.3,2403.2,0.13310675]
[1747661397182,4.1611185,2403.2,2403.1,0.1]
[1747661397532,4.1611185,2403.2,2403.1,0.22999153]
[1747661397845,4.1611185,2403.2,2403.1,0.46269432]
[1747661398378,4.9451185,2403.2,2403.1,0.46269432]
[1747661400371,4.16043372,2403.6,2403.1,0.46269432]
[1747661400530,4.15992056,2403.9,2403.2,0.79481112]
[1747661400531,4.16007987,2403.8,2403.2,0.79481112]
[1747661400733,4.15997532,2403.9,2403.4,4.16067923]
[1747661401030,4.16015876,2403.8,2403.5,1.56716224]
[1747661401232,18.7328,2404.5,2403.5,1.56716224]
[1747661401483,22.12879623,2405.2,2404.3,4.94755713]
[1747661401660,4.15785432,2405.1,2404.6,0.7884]
[1747661401862,4.15785432,2405.1,2404.7,0.12999153]
[1747661402234,4.15800415,2405.0,2404.7,0.12999153]
[1747661402477,4.15744503,2405.4,2404.8,0.12999153]
[1747661402630,0.34718163,2405.3,2405.1,0.7652]
[1747661402968,4.98397705,2404.9,2404.8,0.12999153]
[1747661403159,4.15935446,2404.3,2403.6,4.48390614]
[1747661403475,4.15974318,2404.0,2403.6,0.19049014]
[1747661403780,12.36173377,2404.0,2403.9,0.36167593]
[1747661403968,12.36173377,2404.0,2403.6,0.19049014]
[1747661403969,4.15990681,2403.9,2403.6,0.19049014]
[1747661404173,4.2011207,2403.9,2403.6,0.19049014]
[1747661404470,12.07764104,2403.9,2403.6,0.19049014]
[1747661404675,4.1611185,2403.2,2403.1,0.1]
[1747661404979,16.406,2403.2,2403.1,0.22999414]
[1747661405134,20.5671185,2403.2,2403.1,0.1]
[1747661405482,8.257,2403.4,2403.1,0.1]
[1747661405638,4.1610644,2403.3,2403.1,0.1]
[1747661406043,4.1611185,2403.2,2403.1,0.1]
[1747661406368,4.1611185,2403.2,2403.1,0.22999243]
[1747661406568,4.1611185,2403.2,2403.1,0.1]
[1747661407136,4.9358185,2403.2,2403.1,0.1]
[1747661407436,4.1611185,2403.2,2403.1,0.1]
[1747661407986,20.6371185,2403.2,2403.1,0.1]
[1747661408133,23.12104646,2403.2,2403.1,0.1]
[1747661409046,31.88824646,2403.2,2403.1,0.1]
[1747661409256,32.43824646,2403.2,2403.1,0.1]
[1747661409578,31.93824646,2403.2,2403.1,0.1]
[1747661410689,23.93824646,2403.2,2403.1,0.1]
[1747661410889,28.92212323,2403.2,2403.1,0.1]
[1747661411092,37.47212323,2403.2,2403.1,0.1]
[1747661411776,37.78979789,2403.2,2403.1,0.1]
[1747661412089,21.26379789,2403.2,2403.1,0.1]
[1747661412291,37.23979789,2403.2,2403.1,0.1]
[1747661412596,31.94424646,2403.2,2403.1,0.1]
[1747661412889,28.6931185,2403.2,2403.1,0.1]
[1747661413293,33.99466993,2403.2,2403.1,0.1]
[1747661415365,28.6931185,2403.2,2403.1,0.1]
[1747661415566,4.1611185,2403.2,2403.1,0.1]
[1747661415780,20.7181185,2403.2,2403.1,0.1]
[1747661416080,0.7805,2404.0,2403.1,0.1]
[1747661416302,4.16029893,2403.7,2403.3,4.16087203]
[1747661416492,4.16029893,2403.7,2403.2,4.29102783]
[1747661416654,4.15982715,2404.0,2403.5,4.16049572]
[1747661416992,4.15982715,2404.0,2403.4,4.92116719]
[1747661416993,4.15929127,2404.3,2403.8,4.15999635]
[1747661417192,0.34718163,2404.2,2403.8,4.15999635]
[1747661417398,0.34718163,2404.2,2404.1,4.15956075]
[1747661417598,0.34718163,2404.2,2404.1,4.57967667]
[1747661418001,8.362,2404.4,2404.1,4.57967667]
[1747661418002,4.1585944,2404.7,2404.2,4.15935635]
[1747661418178,4.1594239,2404.2,2403.8,0.7604]
[1747661418380,8.41521389,2404.1,2403.5,0.8008]
[1747661418584,4.16028608,2403.7,2403.2,0.795]
[1747661418888,4.16035288,2403.7,2403.3,0.8895]
[1747661419090,4.16035288,2403.7,2403.3,1.01946671]
[1747661419286,4.16034957,2403.7,2403.3,1.01946671]
[1747661419609,8.382,2404.0,2403.4,4.29073024]
[1747661419610,4.15999479,2403.9,2403.4,4.29073024]
[1747661419905,4.16020678,2403.8,2403.4,0.12996671]
[1747661420101,4.1603499,2403.7,2403.3,0.8895]
[1747661420404,4.16028345,2403.7,2403.2,12.95604302]
[1747661420601,4.16033388,2403.7,2403.2,12.95604302]
[1747661420804,0.04121389,2403.9,2403.3,0.12996821]
[1747661421008,4.16069458,2403.5,2403.3,0.12996821]
[1747661421505,4.16005496,2403.9,2403.2,0.795]
[1747661421804,4.16077238,2403.4,2403.2,0.795]
[1747661422308,4.20170835,2403.6,2403.1,0.1]
[1747661422309,4.16094536,2403.3,2403.1,0.1]
[1747661422470,4.20233239,2403.2,2403.1,0.1]
[1747661422669,18.84238382,2403.2,2403.1,0.1]
[1747661422871,21.10150285,2403.2,2403.1,0.1]
[1747661423113,29.52850285,2403.2,2403.1,0.1]
[1747661424700,4.16198443,2402.7,2402.6,0.14238457]
[1747661424899,20.79298443,2402.7,2402.6,0.14238457]
[1747661425116,4.1623309,2402.5,2402.1,0.1]
[1747661425283,4.16272565,2402.3,2402.1,0.1]
[1747661425606,12.36736657,2402.5,2402.1,0.1]
[1747661425808,7.25010793,2403.2,2402.1,5.01718967]
[1747661426113,4.16199642,2402.7,2402.2,13.46448029]
[1747661426320,4.16199642,2402.7,2402.3,0.13002201]
[1747661426922,21.0224414,2403.1,2402.5,4.16218897]
[1747661427089,4.16164489,2402.9,2402.2,5.46448966]
[1747661427286,4.1625062,2402.4,2402.1,0.8542]
[1747661427685,4.16285072,2402.2,2402.1,0.1]
[1747661427886,4.20406461,2402.2,2402.1,0.1]
[1747661428212,4.16285072,2402.2,2402.1,0.1]
[1747661429698,14.38891743,2402.2,2402.1,0.1]
[1747661429880,14.34770354,2402.2,2402.1,0.1]
[1747661430086,30.69170354,2402.2,2402.1,0.1]
[1747661430285,22.69170354,2402.2,2402.1,0.1]
[1747661430780,18.524,2402.6,2402.1,0.1]
[1747661430781,0.8332,2402.6,2402.1,0.1]
[1747661431082,16.925,2402.7,2402.1,0.1]
[1747661431314,4.16285072,2402.2,2402.1,0.1]
[1747661431510,4.16271098,2402.3,2402.1,0.1]
[1747661431511,4.16279317,2402.3,2402.1,0.1]
[1747661431708,4.16285072,2402.2,2402.1,0.1]
[1747661432018,21.9315365,2402.2,2402.1,0.1]
[1747661432411,30.4815365,2402.2,2402.1,0.1]
[1747661433631,29.9315365,2402.2,2402.1,0.1]
[1747661435038,30.4815365,2402.2,2402.1,0.1]
[1747661435402,31.48759587,2402.2,2402.1,0.1]
[1747661436121,31.69809285,2402.2,2402.1,0.1]
[1747661436322,31.48759587,2402.2,2402.1,0.1]
[1747661436897,22.7676365,2402.2,2402.1,0.1]
[1747661437102,31.2716365,2402.2,2402.1,0.1]
[1747661437439,31.2716365,2402.2,2401.2,0.14238457]
[1747661437440,4.93191094,2401.3,2401.2,0.14238457]
[1747661437626,53.70946237,2401.3,2401.2,0.14238457]
[1747661438139,12.71475781,2401.1,2401.0,0.19049014]
[1747661438341,13.47055781,2401.1,2401.0,0.19049014]
[1747661438515,17.56875051,2401.1,2401.0,0.19049014]
[1747661438865,17.56875051,2401.1,2400.4,0.38122244]
[1747661438866,5.47109879,2400.5,2400.4,0.38122244]
[1747661439004,35.80665022,2400.5,2400.4,0.38122244]
[1747661439406,29.96209879,2400.5,2400.4,0.38122244]
[1747661439608,34.45502964,2400.5,2400.4,0.38122244]
[1747661439918,34.45502964,2400.5,2400.1,0.1]
[1747661439919,4.16631947,2400.2,2400.1,0.1]
[1747661440127,22.18853336,2400.2,2400.1,0.1]
[1747661440331,22.14731947,2400.2,2400.1,0.1]
[1747661440527,23.19636419,2400.2,2400.1,0.1]
[1747661440729,22.14731947,2400.2,2400.1,0.1]
[1747661440923,21.20687039,2400.5,2400.1,0.1]
[1747661441115,17.041,2400.5,2400.1,8.1]
[1747661441319,17.041,2400.5,2400.1,0.1]
[1747661441533,17.041,2400.5,2400.1,4.26635765]
[1747661441733,17.041,2400.5,2400.2,1.30496576]
[1747661442176,35.06,2400.9,2400.3,4.16603677]
[1747661442324,4.16531211,2400.8,2400.3,4.9881998]
[1747661442647,4.16548789,2400.7,2400.3,0.8221]
[1747661442957,4.1662884,2400.3,2400.1,0.1]
[1747661443363,4.16631947,2400.2,2400.1,0.1]
[1747661443927,17.091,2400.4,2400.1,0.1]
[1747661444090,8.434,2400.8,2400.2,4.16629819]
[1747661444296,21.25635559,2400.8,2400.3,4.1661433]
[1747661444580,4.16545264,2400.7,2400.2,4.16624037]
[1747661445098,0.8087,2401.3,2400.7,0.7798]
[1747661445240,8.435,2401.6,2400.7,0.7798]
[1747661445241,4.51187417,2401.2,2400.7,0.7798]
[1747661445435,0.34718163,2401.1,2401.0,12.16493127]
[1747661445639,0.34718163,2401.1,2401.0,12.94473127]
[1747661445853,8.435,2402.0,2401.6,4.16387069]
[1747661446055,8.435,2402.0,2401.7,4.93750361]
[1747661446255,8.435,2402.4,2401.7,1.26765036]
[1747661446643,0.1,2402.9,2402.0,4.16305394]
[1747661446842,0.1,2402.9,2402.2,8.8237]
[1747661447060,0.1,2402.9,2402.5,4.16219066]
[1747661447262,0.1,2402.9,2402.8,4.16181122]
[1747661447551,0.1,2402.9,2402.8,4.98551122]
[1747661447760,0.1,2402.9,2402.8,12.98551122]
[1747661447944,0.1,2402.9,2402.8,13.53551122]
[1747661448475,0.1,2403.9,2403.6,4.16026689]
[1747661448689,0.1,2403.9,2403.8,4.16007987]
[1747661449051,0.1,2403.9,2403.8,30.44847987]
[1747661449397,0.1,2404.9,2404.7,0.7964]
[1747661449552,0.1,2404.9,2404.8,4.15834996]
[1747661449887,0.1,2404.9,2404.7,0.7964]
[1747661450256,0.1,2404.9,2404.0,14.5]
[1747661450257,0.1,2405.9,2405.2,4.1576584]
[1747661450447,0.1,2405.9,2405.8,4.15662149]
[1747661450648,0.1,2405.9,2405.8,31.05802149]
[1747661450904,5.17079641,2406.8,2406.4,4.1555851]
[1747661451193,5.17079641,2406.8,2405.9,12.15644873]
[1747661451194,35.74928488,2408.0,2407.9,4.15299638]
[1747661451348,31.98210109,2408.0,2407.9,26.65299638]
[1747661451700,31.98210109,2408.0,2407.7,0.55]
[1747661451846,31.98210109,2408.0,2406.3,0.51568116]
[1747661451847,35.1803112,2408.0,2406.8,2.499]
[1747661452189,27.014,2407.9,2406.8,3.2323]
[1747661452389,4.15523975,2406.6,2405.8,0.21632377]
[1747661452563,4.1572969,2405.5,2404.1,18.279]
[1747661452775,8.0,2406.4,2404.1,18.279]
[1747661452963,4.15631904,2406.0,2405.1,4.1578101]
[1747661453194,4.15623309,2406.1,2404.7,9.276]
[1747661453505,4.15623309,2406.1,2404.1,0.4185575]
[1747661453506,8.0,2406.2,2406.1,0.1]
[1747661453801,32.91264021,2406.2,2406.1,0.1]
[1747661453966,32.91264021,2406.2,2405.1,0.1]
[1747661453967,4.1576584,2405.2,2405.1,0.1]
[1747661454391,24.57401593,2405.2,2403.1,0.1]
[1747661454693,0.7622,2404.5,2403.1,0.1]
[1747661454896,0.55,2405.8,2404.6,4.15869497]
[1747661455065,0.05199356,2405.7,2404.6,9.808]
[1747661455409,0.0519982,2406.1,2404.3,4.15921474]
[1747661455555,4.15643879,2406.0,2404.4,10.3329]
[1747661455896,0.97873781,2406.7,2404.4,0.2009]
[1747661456063,10.757,2407.4,2406.1,4.15605617]
[1747661456406,0.7622,2407.7,2406.4,4.15552481]
[1747661456407,11.6062,2407.7,2406.4,4.15552481]
[1747661456558,4.15351387,2407.6,2406.4,0.02110536]
[1747661456749,4.15543294,2406.5,2405.9,0.47110536]
[1747661456948,8.0,2406.3,2405.4,0.2009]
[1747661457177,21.749,2406.2,2404.9,4.33457833]
[1747661457382,15.11890377,2406.3,2404.9,8.17645695]
[1747661457704,1.51189038,2406.2,2404.9,0.17645695]
[1747661457989,4.15800415,2405.0,2404.9,0.17645695]
[1747661458172,4.15778445,2405.2,2404.3,4.15909337]
[1747661458383,15.02856425,2405.3,2403.8,4.15993873]